bitfinex/quotes_ETHUSD_20240618
["timestamp","ask_amount","ask_price","bid_price","bid_amount"]
[1718678844986,2.9157,3429.8,3429.3,2.916]
[1718678845485,2.91531,3430.2,3429.1,2.91614]
[1718678845671,2.91596,3429.4,3428.8,2.91645]
[1718678845879,7.38,3429.8,3428.8,0.291645]
[1718678846085,7.38,3429.8,3429.6,2.91576]
[1718678846396,7.38,3429.8,3429.3,2.91596]
[1718678846397,10.29488,3430.7,3429.8,2.9156]
[1718678846553,10.29488,3430.7,3430.2,2.9152]
[1718678846925,2.91501,3430.6,3430.2,2.9152]
[1718678847110,10.29488,3430.7,3430.4,2.91507]
[1718678847111,7.38,3430.7,3430.4,2.91507]
[1718678847387,7.38,3430.7,3429.8,0.29156]
[1718678847388,2.91427,3431.4,3430.1,2.27]
[1718678847591,7.38,3431.8,3430.1,2.27]
[1718678847592,2.91414,3431.6,3431.0,2.91459]
[1718678847764,2.91406,3431.7,3431.0,2.91459]
[1718678848373,2.91419,3431.5,3431.1,2.91448]
[1718678849281,2.91419,3431.5,3431.2,2.91442]
[1718678849452,2.91412,3431.6,3431.2,2.91442]
[1718678849954,2.91412,3431.6,3431.0,2.91454]
[1718678850175,7.38,3431.8,3431.6,2.91401]
[1718678853093,2.91384,3431.9,3431.6,2.91401]
[1718678853589,2.91384,3431.9,3431.4,2.91419]
[1718678853795,10.29349,3432.4,3431.0,3.497509]
[1718678853796,2.4391,3432.3,3431.0,0.582929]
[1718678853956,2.914,3431.7,3430.4,2.91506]
[1718678854165,2.91441,3431.3,3430.9,2.91466]
[1718678854789,2.91444,3431.2,3430.7,2.91482]
[1718678855293,2.91461,3431.0,3430.7,2.91482]
[1718678855490,2.91455,3431.1,3430.7,2.91482]
[1718678855703,2.91442,3431.3,3430.7,2.91482]
[1718678856192,2.91454,3431.1,3430.7,2.91478]
[1718678856512,5.91395,3431.8,3431.2,2.91441]
[1718678856671,2.91392,3431.8,3431.5,2.91416]
[1718678856863,2.91392,3431.8,3431.4,2.91425]
[1718678857689,2.91392,3431.8,3431.2,2.91436]
[1718678858270,2.9141,3431.6,3431.3,2.9143]
[1718678858466,2.914,3431.8,3431.4,2.91425]
[1718678858872,2.91403,3431.7,3431.3,2.91434]
[1718678859268,2.91403,3431.7,3431.4,2.91425]
[1718678859473,2.91371,3432.1,3431.7,2.91398]
[1718678859707,2.91376,3432.0,3431.7,2.91398]
[1718678860600,2.91376,3432.0,3431.5,2.91413]
[1718678860601,2.91385,3431.9,3431.5,2.91413]
[1718678860793,2.91409,3431.6,3431.3,2.91427]
[1718678861100,2.91418,3431.5,3431.0,2.91455]
[1718678861466,2.3955,3431.9,3431.0,2.91455]
[1718678861681,2.91436,3431.3,3431.0,2.91455]
[1718678861881,5.3955,3431.9,3430.6,2.91491]
[1718678861882,2.91416,3431.6,3430.6,2.91491]
[1718678862113,2.91416,3431.6,3430.4,2.91507]
[1718678862114,2.91469,3430.9,3430.3,2.91516]
[1718678862404,2.9148,3430.8,3430.2,2.91522]
[1718678862575,2.91494,3430.6,3430.2,2.91522]
[1718678864126,2.91505,3430.5,3429.8,2.91555]
[1718678864273,2.91522,3430.3,3429.6,2.3535]
[1718678864469,2.91505,3430.5,3429.7,2.9157]
[1718678864793,10.29486,3430.7,3429.7,2.9157]
[1718678864794,10.29486,3430.7,3430.0,2.91542]
[1718678865105,2.9151,3430.5,3430.1,2.91536]
[1718678865469,2.91512,3430.4,3430.1,2.91536]
[1718678865794,7.38,3430.7,3430.2,2.91525]
[1718678865995,2.91504,3430.5,3430.0,0.583112]
[1718678866376,2.91504,3430.5,3430.2,2.91526]
[1718678866573,10.29489,3430.7,3430.3,2.91518]
[1718678866773,2.91472,3430.9,3430.5,2.91501]
[1718678866990,5.91477,3430.8,3430.5,2.91501]
[1718678868486,2.91477,3430.8,3430.5,2.91501]
[1718678868688,2.91463,3431.0,3430.7,2.91485]
[1718678869090,2.91463,3431.0,3430.6,2.91493]
[1718678869307,2.91469,3430.9,3430.6,2.91493]
[1718678872033,2.91455,3431.1,3430.0,0.583112]
[1718678872231,2.91478,3430.8,3430.4,2.91507]
[1718678872398,2.91478,3430.8,3430.5,2.91502]
[1718678872823,2.91486,3430.7,3430.2,2.91521]
[1718678873097,2.91461,3431.0,3430.5,2.91502]
[1718678873098,2.91477,3430.8,3430.5,2.91502]
[1718678873636,2.91502,3430.5,3430.2,2.91522]
[1718678874007,2.91502,3430.5,3429.7,2.91565]
[1718678874215,2.91511,3430.4,3430.0,2.91544]
[1718678874925,2.91519,3430.3,3430.0,2.91544]
[1718678875433,2.9154,3430.1,3429.6,2.9157]
[1718678875617,2.91544,3430.1,3429.6,2.91574]
[1718678875826,2.91545,3430.0,3429.6,2.91574]
[1718678877200,2.91529,3430.2,3429.7,2.9157]
[1718678877736,2.91537,3430.1,3429.7,2.9157]
[1718678879119,0.05,3430.0,3429.7,2.9157]
[1718678881028,0.05,3430.0,3429.9,8.74659]
[1718678881841,0.05,3430.0,3429.9,11.01649]
[1718678883802,0.05,3430.0,3429.9,13.93202]
[1718678884005,2.91427,3431.4,3431.0,2.91457]
[1718678884228,2.11792983,3431.3,3431.0,2.91457]
[1718678884439,2.91427,3431.4,3431.0,2.91457]
[1718678884920,2.91461,3431.0,3430.6,2.91493]
[1718678885121,2.91444,3431.2,3430.7,2.91484]
[1718678885327,2.91452,3431.1,3430.7,2.91484]
[1718678886367,2.88452,3431.1,3430.7,2.91484]
[1718678886656,2.91463,3431.0,3430.4,2.9151]
[1718678887029,2.91477,3430.8,3430.4,2.9151]
[1718678887934,0.504308,3431.3,3430.5,2.91502]
[1718678888130,2.91419,3431.5,3430.6,2.91494]
[1718678888131,2.91464,3431.0,3430.6,2.91494]
[1718678888559,2.3737,3431.3,3430.2,2.91527]
[1718678888560,2.91494,3430.6,3430.2,2.91527]
[1718678888859,2.91477,3430.8,3430.2,2.91527]
[1718678889071,0.504308,3431.0,3430.2,2.91525]
[1718678889364,2.11810078,3430.9,3430.7,2.91484]
[1718678889860,5.11810078,3430.9,3430.7,2.91484]
[1718678890022,3.0,3430.9,3430.7,2.91484]
[1718678890229,3.504308,3431.0,3430.7,2.91484]
[1718678890564,7.38,3431.1,3431.0,2.9146]
[1718678890750,6.41841493,3431.5,3431.0,2.8846]
[1718678890950,6.41841493,3431.5,3431.4,2.91426]
[1718678890951,0.50423493,3431.5,3431.4,2.91426]
[1718678891340,2.91392,3431.8,3431.4,2.91426]
[1718678891535,2.11757139,3431.7,3431.4,2.91426]
[1718678891873,2.91375,3432.0,3430.7,0.582985]
[1718678891874,2.11759748,3431.6,3430.7,0.582985]
[1718678892037,2.11759748,3431.9,3431.5,2.91417]
[1718678892244,2.11744942,3431.8,3431.5,2.91417]
[1718678892576,2.91375,3432.0,3431.5,2.91417]
[1718678892877,2.91375,3432.0,3431.6,2.91409]
[1718678892878,2.11740548,3431.9,3431.6,2.91409]
[1718678893436,5.91366,3432.1,3431.7,2.914]
[1718678893652,2.11740635,3432.0,3431.7,2.914]
[1718678894281,2.11740635,3432.0,3431.8,2.91391]
[1718678894765,2.11740635,3432.0,3431.8,5.82782]
[1718678895083,2.91244,3433.6,3431.1,2.91447]
[1718678895084,6.08939762,3432.8,3432.4,2.91334]
[1718678895282,6.08939762,3432.8,3432.0,2.91374]
[1718678895283,2.11706148,3432.7,3432.3,2.91349]
[1718678895474,2.11706148,3432.7,3432.4,2.9134]
[1718678896145,2.91307,3432.8,3432.4,2.9134]
[1718678898760,2.91316,3432.7,3432.4,2.9134]
[1718678899597,10.29289,3433.1,3432.7,2.91311]
[1718678899761,7.38,3433.1,3432.5,2.91329]
[1718678900091,2.91245,3433.6,3433.2,2.91273]
[1718678900296,2.91245,3433.6,3433.0,2.91288]
[1718678901191,2.91282,3433.1,3432.8,2.91299]
[1718678901986,2.91245,3433.6,3432.8,2.91299]
[1718678902196,5.91249,3433.5,3433.1,2.91275]
[1718678902353,2.91249,3433.5,3433.1,2.91275]
[1718678902557,2.91235,3433.7,3433.2,2.91272]
[1718678902777,3.0,3433.6,3433.3,2.91262]
[1718678903184,3.0,3433.6,3433.4,2.91255]
[1718678903398,3.0,3433.8,3433.6,5.82473]
[1718678903699,3.0,3433.8,3433.6,8.73711]
[1718678903857,3.0,3433.8,3433.6,9.610838]
[1718678904056,7.38,3434.8,3434.0,2.91202]
[1718678904260,2.91139,3434.8,3434.4,2.9117]
[1718678904474,2.91148,3434.7,3434.2,2.91187]
[1718678904701,2.91148,3434.7,3434.3,2.91177]
[1718678905060,10.29113,3435.1,3433.7,2.3702]
[1718678905286,10.29113,3435.1,3434.7,2.91143]
[1718678905287,7.38,3435.1,3434.7,2.91143]
[1718678905490,2.91105,3435.2,3434.7,2.91143]
[1718678905662,2.91105,3435.2,3433.8,0.3243928]
[1718678905663,2.91121,3435.0,3434.5,2.91161]
[1718678905858,2.91103,3435.2,3434.3,2.91173]
[1718678906110,2.91164,3434.5,3434.1,2.91194]
[1718678906309,2.2757,3435.3,3433.7,2.91228]
[1718678906310,2.91158,3434.6,3434.2,2.91187]
[1718678907121,2.91166,3434.5,3434.0,2.91203]
[1718678907283,2.91181,3434.3,3433.8,2.91217]
[1718678908190,2.9117,3434.5,3434.0,2.91204]
[1718678908366,2.91173,3434.4,3434.0,2.91204]
[1718678909064,7.38,3435.0,3434.0,3.494467]
[1718678909266,7.38,3435.0,3434.8,5.82268]
[1718678909618,2.91079,3435.5,3435.0,2.91114]
[1718678909820,10.29068,3435.7,3435.1,2.9111]
[1718678910010,2.91068,3435.7,3435.1,2.9111]
[1718678910204,2.9107,3435.6,3435.1,2.9111]
[1718678910521,2.91079,3435.5,3435.1,2.9111]
[1718678910719,8.2224,3435.8,3434.6,2.91153]
[1718678910893,2.91115,3435.1,3434.6,2.91153]
[1718678911099,2.9113,3434.9,3434.3,2.91172]
[1718678911308,2.9113,3434.9,3434.4,2.91165]
[1718678912220,2.9113,3434.9,3434.2,2.91183]
[1718678912221,5.25456,3434.9,3434.2,2.91183]
[1718678912516,2.91149,3434.7,3434.2,2.91183]
[1718678912715,5.25453,3434.9,3434.3,2.91179]
[1718678912915,5.25453,3434.9,3434.4,2.91169]
[1718678913220,2.91138,3434.8,3434.4,2.91169]
[1718678913393,5.25453,3434.9,3434.2,2.91183]
[1718678913595,2.91147,3434.7,3434.3,2.91179]
[1718678913799,2.91172,3434.4,3434.0,2.91199]
[1718678914103,2.91172,3434.4,3433.8,2.91218]
[1718678915191,2.91192,3434.2,3433.8,2.91218]
[1718678915418,2.91214,3433.9,3433.4,2.91254]
[1718678916113,2.91147,3434.7,3434.0,2.91202]
[1718678916424,2.91163,3434.5,3434.1,2.91196]
[1718678916634,2.91147,3434.7,3434.2,2.91187]
[1718678916801,5.91155,3434.6,3434.2,2.91187]
[1718678917002,5.91155,3434.6,3434.0,2.91202]
[1718678917199,5.91155,3434.6,3434.1,2.91196]
[1718678917200,2.91163,3434.5,3434.1,2.91196]
[1718678919820,7.38,3435.6,3433.1,2.9128]
[1718678920132,7.38,3435.6,3434.6,2.91147]
[1718678920133,3.0,3434.9,3434.6,2.91147]
[1718678920287,2.91113,3435.1,3434.6,2.91147]
[1718678920485,3.0,3435.0,3434.6,2.91147]
[1718678920704,5.91121,3435.0,3434.6,2.91147]
[1718678921100,2.91113,3435.1,3434.7,2.9114]
[1718678921297,2.91113,3435.1,3434.6,2.91147]
[1718678921926,2.91102,3435.3,3434.4,2.91164]
[1718678922100,7.38,3435.6,3435.0,2.9112]
[1718678922101,2.91087,3435.4,3435.0,2.9112]
[1718678922287,2.91096,3435.3,3434.9,2.91128]
[1718678923346,7.38,3435.6,3435.0,2.9112]
[1718678923490,3.0,3435.5,3435.0,2.9112]
[1718678923829,2.9109,3435.4,3435.0,2.9112]
[1718678924024,3.0,3435.7,3433.0,7.43]
[1718678924236,2.91128,3435.0,3434.5,2.91157]
[1718678924438,0.55,3435.6,3434.3,2.91175]
[1718678924439,2.91147,3434.7,3434.3,2.91175]
[1718678925559,2.4012,3435.3,3433.7,2.91229]
[1718678925560,2.91122,3435.0,3433.7,2.91229]
[1718678925712,2.91186,3434.3,3433.7,2.91229]
[1718678925913,2.91186,3434.3,3433.8,2.91221]
[1718678926540,2.91189,3434.2,3433.8,2.91221]
[1718678926752,2.91198,3434.1,3433.7,2.9123]
[1718678927713,3.41530604,3434.7,3433.0,2.91286]
[1718678927714,2.2608,3434.4,3433.0,2.91286]
[1718678927915,2.91238,3433.7,3433.2,2.91273]
[1718678928115,7.38,3434.2,3433.1,2.91279]
[1718678928315,2.91247,3433.6,3433.2,2.91272]
[1718678928514,2.91248,3433.5,3433.2,2.91272]
[1718678928736,2.91248,3433.5,3432.9,2.91298]
[1718678930247,2.91248,3433.5,3433.1,2.91281]
[1718678930638,2.9124,3433.6,3433.2,2.91272]
[1718678930935,7.38,3434.2,3433.3,2.97088518]
[1718678931251,3.0,3434.1,3433.7,2.91225]
[1718678931818,3.0,3434.1,3433.8,2.91221]
[1718678932834,3.0,3434.1,3433.6,2.91233]
[1718678933040,3.0,3434.3,3433.6,2.91233]
[1718678933914,3.0,3434.3,3433.1,2.9128]
[1718678934227,2.2608,3434.4,3433.2,2.9127]
[1718678934441,0.55,3434.3,3433.2,2.9127]
[1718678934610,3.55,3434.3,3432.9,2.91292]
[1718678934814,3.55,3434.3,3433.1,2.91281]
[1718678935036,3.55,3434.3,3433.2,2.91272]
[1718678936027,3.55,3434.3,3433.1,2.91281]
[1718678936269,3.55,3434.3,3433.0,2.91289]
[1718678936828,3.55,3434.3,3432.8,2.913]
[1718678937151,2.11650059,3434.2,3432.9,2.91297]
[1718678937452,0.55,3434.1,3432.9,2.91297]
[1718678937653,3.55,3434.1,3432.9,2.91297]
[1718678937866,3.55,3434.1,3432.5,2.91324]
[1718678937867,3.55,3434.1,3433.0,2.9129]
[1718678938045,0.55,3434.1,3433.0,2.9129]
[1718678938374,3.0,3434.3,3433.4,2.91254]
[1718678938557,2.2608,3434.4,3433.6,2.91233]
[1718678939531,3.0,3434.5,3433.8,2.91222]
[1718678939737,3.0,3434.6,3433.8,2.91222]
[1718678940230,2.66610576,3434.5,3433.0,3.20419]
[1718678940426,0.55,3434.5,3433.5,2.91247]
[1718678941362,0.55,3434.5,3433.4,2.91256]
[1718678942452,0.55,3434.5,3433.2,2.91265]
[1718678942825,0.55,3434.5,3432.8,2.91303]
[1718678942826,2.3444,3434.4,3433.0,2.91283]
[1718678943160,0.55,3434.3,3433.0,2.91283]
[1718678943553,3.55,3434.3,3433.0,2.91283]
[1718678943859,2.4698,3434.2,3432.7,2.91314]
[1718678944059,0.55,3434.1,3432.7,2.91314]
[1718678944261,3.55,3434.1,3432.7,2.91314]
[1718678944560,3.55,3434.1,3432.8,2.91307]
[1718678944926,3.55,3434.1,3432.6,2.91323]
[1718678945129,5.4698,3434.0,3432.7,2.91315]
[1718678945353,0.55,3433.9,3432.7,2.91315]
[1718678945555,3.55,3433.9,3432.7,2.91315]
[1718678946669,3.55,3433.9,3432.5,2.9133]
[1718678947272,2.2695,3433.8,3432.3,2.91348]
[1718678947776,0.55,3433.7,3432.3,2.91348]
[1718678948134,3.55,3433.7,3432.3,2.91348]
[1718678949558,2.08,3433.6,3432.2,2.91357]
[1718678949869,0.55,3433.5,3432.2,2.91357]
[1718678950072,2.3008,3433.4,3432.2,2.91357]
[1718678950375,0.55,3433.3,3432.2,2.91357]
[1718678950579,3.55,3433.3,3432.2,2.91357]
[1718678950748,2.91,3433.8,3432.3,2.759657]
[1718678951075,2.91,3433.8,3432.4,2.97164685]
[1718678951076,2.2552,3433.7,3432.4,2.97164685]
[1718678951276,2.2552,3433.7,3432.8,2.91307]
[1718678951466,2.2552,3433.7,3432.9,2.91292]
[1718678951982,2.2552,3433.7,3433.0,2.9129]
[1718678952477,3.0,3433.7,3433.5,2.91244]
[1718678952655,3.0,3433.7,3433.3,2.91256]
[1718678953009,2.91,3433.8,3433.3,2.91256]
[1718678953143,3.0,3433.7,3433.4,2.91256]
[1718678953336,0.50384727,3434.0,3433.4,0.582528]
[1718678953559,9.6933,3434.1,3433.6,2.91231]
[1718678954058,0.5037903,3434.4,3433.5,2.91246]
[1718678954378,10.1970903,3434.6,3433.9,2.91206]
[1718678954686,10.1970903,3434.6,3433.1,2.91281]
[1718678954687,9.6933,3434.6,3433.1,2.91281]
[1718678954992,9.6933,3434.6,3432.8,2.91303]
[1718678954993,10.19712215,3434.6,3432.8,2.91303]
[1718678955199,2.81712215,3434.6,3433.7,2.91223]
[1718678955355,3.0,3434.5,3433.5,2.9124]
[1718678955672,5.3133,3434.6,3433.5,2.9124]
[1718678955877,0.55,3434.5,3433.5,2.9124]
[1718678956189,3.55,3434.5,3433.5,2.9124]
[1718678957183,3.55,3434.5,3433.2,2.91272]
[1718678957386,3.55,3434.5,3433.1,2.91274]
[1718678958253,3.55,3434.5,3433.3,2.91256]
[1718678958972,3.55,3434.5,3433.1,2.91274]
[1718678959156,3.55,3434.5,3433.2,2.91272]
[1718678959756,2.2764,3434.4,3432.8,2.91299]
[1718678959979,2.2764,3434.3,3432.8,2.91299]
[1718678960171,2.2764,3434.2,3432.9,2.91298]
[1718678960464,0.55,3434.1,3432.5,2.91329]
[1718678960678,3.55,3434.1,3432.6,0.3204647]
[1718678960869,3.55,3434.1,3432.8,2.91301]
[1718678961166,3.55,3434.1,3433.0,2.91289]
[1718678963989,3.55,3434.1,3432.9,2.91297]
[1718678964198,3.55,3434.1,3432.5,2.91329]
[1718678964488,3.55,3434.1,3432.8,2.91305]
[1718678964696,3.55,3434.1,3432.9,2.91298]
[1718678966060,2.2522,3434.0,3432.9,2.91298]
[1718678966403,2.2522,3434.0,3432.5,2.91329]
[1718678966404,2.8022,3433.9,3432.5,2.91332]
[1718678966575,3.0,3433.8,3432.5,2.91332]
[1718678966778,0.55,3433.7,3432.5,2.91332]
[1718678967013,0.55,3433.7,3432.6,2.91323]
[1718678974211,3.0,3433.8,3433.1,2.9128]
[1718678974378,0.50398903,3434.0,3433.2,2.91272]
[1718678974379,3.0,3434.0,3433.2,2.91272]
[1718678974585,3.0,3434.1,3433.2,2.91272]
[1718678974803,3.0,3434.1,3433.3,2.91264]
[1718678976011,0.55,3434.0,3433.3,2.91264]
[1718678977891,0.55,3434.0,3433.1,2.9128]
[1718678978201,0.55,3434.0,3433.2,2.91272]
[1718678979977,0.55,3434.0,3432.9,2.9129]
[1718678979978,0.55,3434.0,3433.1,2.91281]
[1718678985540,3.0,3434.1,3433.1,3.495389]
[1718678985691,0.50391723,3434.3,3433.9,2.91212]
[1718678986120,2.3771,3434.4,3433.9,2.91212]
[1718678987246,7.88391723,3434.6,3434.1,2.91197]
[1718678987394,7.38,3434.6,3434.1,2.91197]
[1718678987589,7.38,3434.6,3434.3,2.91177]
[1718678987814,7.38,3434.6,3434.4,2.91166]
[1718678987994,7.38,3434.6,3434.1,2.91197]
[1718678988217,7.38,3434.6,3434.2,2.91187]
[1718678988618,3.0,3434.5,3434.2,2.91187]
[1718678988816,3.0,3434.5,3433.9,5.82424]
[1718678989191,3.0,3434.5,3433.1,2.91278]
[1718678989192,2.4661,3434.4,3433.1,2.91278]
[1718678989536,2.4661,3434.4,3433.1,2.91277]
[1718678989537,2.63,3434.3,3433.1,2.91277]
[1718678989738,2.63,3434.3,3433.3,2.91263]
[1718678990039,3.0,3434.2,3433.3,2.91263]
[1718678990227,0.55,3434.1,3433.3,2.91263]
[1718678990630,0.55,3434.1,3433.1,3.204017]
[1718678990797,0.55,3434.1,3433.2,2.91273]
[1718678991005,0.55,3434.1,3433.2,3.5244207]
[1718678991199,0.55,3434.1,3433.3,2.91264]
[1718678992961,0.55,3434.1,3433.2,3.5244207]
[1718678993256,2.91246,3433.6,3433.2,3.5244207]
[1718678994961,2.91248,3433.5,3433.2,3.5244207]
[1718678996239,2.91248,3433.5,3433.2,2.91273]
[1718678996575,2.91267,3433.3,3432.9,2.91298]
[1718678996721,2.91296,3433.0,3432.6,2.9132]
[1718678997050,2.91296,3433.0,3432.7,2.91314]
[1718678997252,2.91296,3433.0,3432.4,2.91337]
[1718678997450,2.91296,3433.0,3432.5,0.822623]
[1718678998170,2.91296,3433.0,3432.6,2.91324]
[1718678998326,2.91296,3433.0,3432.7,2.91313]
[1718679000248,2.91296,3433.0,3432.7,2.91315]
[1718679000463,2.91307,3432.8,3432.4,2.91336]
[1718679000667,2.91341,3432.4,3432.1,2.91366]
[1718679000867,2.91324,3432.6,3432.1,2.91366]
[1718679001175,2.91333,3432.5,3432.1,2.91366]
[1718679001744,2.91306,3432.9,3432.0,2.91371]
[1718679001943,0.50389006,3433.3,3432.4,2.9134]
[1718679001944,2.11689315,3432.8,3432.4,2.9134]
[1718679002165,5.91278,3433.2,3432.8,2.91305]
[1718679002479,2.91292,3433.0,3432.4,2.9134]
[1718679002680,5.02979019,3432.9,3432.6,2.91324]
[1718679002840,2.11680019,3432.8,3432.6,2.91324]
[1718679003269,2.11680019,3432.8,3432.4,2.9134]
[1718679003270,2.11680019,3432.8,3432.7,2.91315]
[1718679003520,2.11680019,3432.8,3432.4,2.91333]
[1718679003738,2.11680019,3432.7,3432.5,2.91332]
[1718679003969,3.0,3433.2,3432.7,2.91314]
[1718679003970,5.9128,3433.2,3432.7,2.91314]
[1718679004147,5.02962207,3433.1,3432.5,1.11282]
[1718679004367,5.02970207,3433.0,3432.5,2.91331]
[1718679004567,2.11679207,3432.9,3432.5,2.91331]
[1718679004786,2.11679207,3432.9,3432.7,2.91314]
[1718679004941,4.60442922,3434.0,3432.2,5.30154]
[1718679004942,0.50399212,3433.4,3432.2,5.30154]
[1718679005140,2.11658226,3433.3,3432.3,0.58841025]
[1718679005379,2.91233,3433.7,3432.3,0.58841025]
[1718679005380,2.11658226,3433.4,3433.3,2.91264]
[1718679005684,2.11649607,3433.6,3433.3,2.91264]
[1718679006243,2.11649607,3433.6,3432.8,2.91305]
[1718679006548,2.11649607,3433.5,3432.8,2.91305]
[1718679006747,5.02909607,3433.4,3432.8,2.91305]
[1718679007042,2.91275,3433.2,3432.8,2.91305]
[1718679007468,2.11655572,3433.1,3432.8,2.91305]
[1718679007791,2.91275,3433.2,3432.8,2.91305]
[1718679008857,2.91275,3433.2,3432.9,2.91298]
[1718679009277,2.9126,3433.4,3433.0,2.9129]
[1718679009486,2.11651645,3433.3,3433.2,5.82546]
[1718679009811,2.11642762,3433.6,3433.3,2.91261]
[1718679010114,2.11642762,3433.6,3433.0,0.873903]
[1718679010115,2.11631997,3433.5,3433.4,2.97081087]
[1718679010279,2.11631997,3434.2,3434.1,2.91197]
[1718679010607,2.11599636,3434.4,3434.1,2.91197]
[1718679010907,2.1158289,3434.3,3434.1,2.91197]
[1718679011207,2.11599636,3434.2,3434.1,2.91197]
[1718679011366,4.23182526,3434.2,3434.1,2.91197]
[1718679013004,4.23182526,3434.2,3434.1,9.60953]
[1718679013005,2.1158289,3434.2,3434.1,9.60953]
[1718679013177,2.1158289,3434.2,3434.1,6.69756]
[1718679013367,2.1158289,3434.2,3434.1,9.60953]
[1718679013915,10.29129,3434.9,3434.5,2.91159]
[1718679014128,7.14257778,3434.8,3434.5,2.91159]
[1718679014289,5.02697251,3434.8,3434.5,2.91159]
[1718679014491,2.11559251,3434.7,3434.5,2.91159]
[1718679015302,2.91113,3435.1,3434.5,2.91159]
[1718679015528,4.2311516,3435.0,3434.5,2.91159]
[1718679015730,2.11555842,3434.9,3434.8,5.82264]
[1718679015951,3.0,3435.4,3435.1,2.91112]
[1718679015952,2.11553541,3435.2,3435.1,2.91112]
[1718679016097,0.5037146,3435.4,3435.3,2.91095]
[1718679016299,2.91062,3435.7,3435.3,2.91095]
[1718679016796,2.91056,3435.8,3435.4,2.91084]
[1718679016996,0.50358529,3436.2,3436.0,2.91035]
[1718679017302,10.28969,3436.8,3436.3,2.91002]
[1718679017638,10.28969,3436.8,3436.4,2.91]
[1718679019035,10.28969,3436.8,3435.7,2.3914]
[1718679019036,7.38,3436.8,3435.7,2.3914]
[1718679019224,7.38,3436.8,3435.8,0.05819618]
[1718679019540,7.38,3436.8,3435.9,0.24495962]
[1718679019715,7.38,3436.8,3436.6,2.90983]
[1718679021245,4.9889,3437.8,3436.6,2.90983]
[1718679021246,7.38,3437.9,3436.6,2.2611]
[1718679021429,0.036575,3438.3,3437.3,2.90921]
[1718679021737,0.036575,3438.3,3437.5,2.90907]
[1718679022300,0.036575,3438.3,3436.4,2.90996]
[1718679022301,0.036575,3438.3,3437.2,2.90932]
[1718679022932,3.036575,3438.3,3436.9,2.90953]
[1718679023132,3.036575,3438.3,3437.5,2.90906]
[1718679023333,3.036575,3438.3,3437.7,2.9089]
[1718679023544,3.036575,3438.3,3437.7,2.90886]
[1718679023844,3.0,3438.2,3437.7,2.90886]
[1718679024145,0.036575,3438.3,3437.7,2.90886]
[1718679024360,2.666575,3438.3,3437.3,2.90922]
[1718679024575,2.666575,3438.3,3437.4,2.90916]
[1718679024710,3.0,3438.2,3437.0,2.90947]
[1718679024909,0.55,3438.1,3437.1,2.90941]
[1718679025158,2.08,3437.9,3436.4,2.90999]
[1718679025437,0.55,3437.8,3436.6,2.90983]
[1718679025644,3.55,3437.8,3436.6,2.90983]
[1718679025866,2.3383,3437.7,3436.4,2.90999]
[1718679026010,2.08,3437.5,3436.2,2.91016]
[1718679026212,2.08,3437.5,3436.0,2.9103]
[1718679026406,2.08,3437.1,3435.8,2.91051]
[1718679026628,2.27,3436.9,3435.8,2.91051]
[1718679026820,0.55,3436.8,3435.6,2.91067]
[1718679027014,0.55,3436.8,3435.3,2.91094]
[1718679027015,2.08,3436.7,3435.3,2.91094]
[1718679027236,2.08,3436.3,3435.4,2.91083]
[1718679027411,0.55,3436.2,3435.3,2.91094]
[1718679027920,3.55,3436.5,3435.4,2.91085]
[1718679028232,3.0,3436.4,3435.4,2.91085]
[1718679028570,0.55,3436.3,3435.4,2.91085]
[1718679028741,7.38,3436.9,3435.5,2.50180765]
[1718679028945,2.9,3437.4,3435.5,2.50180765]
[1718679029251,4.4925,3437.5,3436.6,2.90983]
[1718679029468,4.4925,3437.5,3436.5,2.90986]
[1718679029610,4.4925,3437.5,3436.3,2.91003]
[1718679030751,0.036575,3438.3,3436.9,2.90958]
[1718679031044,0.036575,3438.3,3436.4,0.05819757]
[1718679031045,0.036575,3438.3,3437.7,2.90888]
[1718679031251,0.036575,3438.3,3437.9,2.90872]
[1718679031750,0.036575,3438.3,3438.0,0.05539556]
[1718679032048,0.036575,3438.3,3437.7,2.90888]
[1718679032217,0.036575,3438.3,3437.5,2.90902]
[1718679032218,0.036575,3438.3,3437.8,2.90882]
[1718679032548,0.036575,3438.3,3438.1,0.05069849]
[1718679032846,0.036575,3438.3,3437.4,2.90909]
[1718679033044,0.036575,3438.3,3438.2,0.05069849]
[1718679033630,0.036575,3438.3,3437.7,2.9089]
[1718679034024,0.036575,3438.3,3437.8,0.05048665]
[1718679035134,0.036575,3438.3,3437.2,0.05818406]
[1718679035335,0.036575,3438.3,3437.9,0.05051411]
[1718679035538,0.036575,3438.3,3437.8,2.90878]
[1718679035743,0.036575,3438.3,3438.0,0.05051411]
[1718679035914,0.036575,3438.3,3437.8,2.90878]
[1718679036119,0.036575,3438.3,3438.1,0.05051411]
[1718679036322,0.036575,3438.3,3437.8,2.90878]
[1718679036528,0.036575,3438.3,3438.2,0.05051411]
[1718679036714,0.036575,3438.3,3438.0,2.90865]
[1718679036916,0.036575,3438.3,3437.6,2.90899]
[1718679036917,0.036575,3438.3,3438.2,8.77598411]
[1718679037117,0.036575,3438.3,3438.2,8.72547]
[1718679037320,9.7631,3440.1,3439.1,2.90768]
[1718679037522,12.23,3440.7,3439.2,0.05814513]